[Event "Live Chess"]
[Site "Chess.com"]
[Date "2023.05.20"]
[Round "-"]
[White "smoggyrabbit"]
[Black "tuppyglossop"]
[Result "1-0"]
[WhiteElo "1668"]
[BlackElo "1591"]
[TimeControl "300"]
[EndTime "12:44:02 PDT"]
[Termination "smoggyrabbit won by checkmate"]

1. d4 {[%clk 0:04:59.4]} 1... d5 {[%clk 0:04:58.2]} 2. Nf3 {[%clk 0:04:58.4]}
2... e6 {[%clk 0:04:56.9]} 3. e3 {[%clk 0:04:57.7]} 3... Nf6 {[%clk 0:04:54.1]}
4. Bd3 {[%clk 0:04:56.5]} 4... c5 {[%clk 0:04:52.6]} 5. b3 {[%clk 0:04:55.3]}
5... Nc6 {[%clk 0:04:49.7]} 6. Bb2 {[%clk 0:04:53]} 6... b6 {[%clk 0:04:46.6]}
7. O-O {[%clk 0:04:51.4]} 7... Bb7 {[%clk 0:04:45.4]} 8. a3 {[%clk 0:04:47.5]}
8... cxd4 {[%clk 0:04:44.3]} 9. exd4 {[%clk 0:04:46.3]} 9... Bd6 {[%clk
0:04:41.6]} 10. Nbd2 {[%clk 0:04:45.5]} 10... O-O {[%clk 0:04:40.4]} 11. Ne5
{[%clk 0:04:44.4]} 11... Qc7 {[%clk 0:04:36]} 12. f4 {[%clk 0:04:42.3]} 12...
Rac8 {[%clk 0:04:33]} 13. Rf3 {[%clk 0:04:32.4]} 13... Bxe5 {[%clk 0:04:15]} 14.
fxe5 {[%clk 0:04:20.4]} 14... Ne8 {[%clk 0:04:13.1]} 15. Bxh7+ {[%clk 0:04:10]}
15... Kxh7 {[%clk 0:04:08.3]} 16. Rh3+ {[%clk 0:04:08.9]} 16... Kg8 {[%clk
0:04:07.3]} 17. Qh5 {[%clk 0:04:07.7]} 17... f5 {[%clk 0:04:02.5]} 18. Nf3
{[%clk 0:03:38.9]} 18... Na5 {[%clk 0:03:39.8]} 19. Ng5 {[%clk 0:03:35.1]} 19...
Qe7 {[%clk 0:03:36.1]} 20. Qh7# {[%clk 0:03:33.7]} 1-0

[Event "Live Chess"]
[Site "Chess.com"]
[Date "2023.05.20"]
[Round "-"]
[White "yarek"]
[Black "Jo1ts"]
[Result "1-0"]
[WhiteElo "1890"]
[BlackElo "741"]
[TimeControl "300"]
[EndTime "12:44:09 PDT"]
[Termination "yarek won by checkmate"]

1. e4 {[%clk 0:04:57.3]} 1... d5 {[%clk 0:04:58.5]} 2. Nf3 {[%clk 0:04:54.1]}
2... dxe4 {[%clk 0:04:56.4]} 3. Ng5 {[%clk 0:04:52.8]} 3... Nf6 {[%clk
0:04:40.3]} 4. Bc4 {[%clk 0:04:48.9]} 4... Bg4 {[%clk 0:04:28.9]} 5. Bxf7+
{[%clk 0:04:37.1]} 5... Kd7 {[%clk 0:04:24.2]} 6. f3 {[%clk 0:04:32]} 6... Bh5
{[%clk 0:04:21.4]} 7. Bxh5 {[%clk 0:04:25.9]} 7... Nxh5 {[%clk 0:04:21.3]} 8.
Nf7 {[%clk 0:04:21.1]} 8... Qe8 {[%clk 0:04:17.3]} 9. Nxh8 {[%clk 0:04:19.5]}
9... g6 {[%clk 0:04:13.7]} 10. O-O {[%clk 0:04:12.1]} 10... Bg7 {[%clk
0:04:12.3]} 11. fxe4 {[%clk 0:03:58.8]} 11... Qxh8 {[%clk 0:04:04.3]} 12. Qg4+
{[%clk 0:03:53.1]} 12... Kd8 {[%clk 0:04:00.9]} 13. d3 {[%clk 0:03:41.9]} 13...
Bxb2 {[%clk 0:03:58.4]} 14. Bxb2 {[%clk 0:03:34]} 14... Qxb2 {[%clk 0:03:56]}
15. Rf8# {[%clk 0:03:31.4]} 1-0

[Event "Live Chess"]
[Site "Chess.com"]
[Date "2023.05.20"]
[Round "-"]
[White "f4nomore"]
[Black "Woodpusher500"]
[Result "0-1"]
[WhiteElo "1360"]
[BlackElo "1343"]
[TimeControl "300"]
[EndTime "12:44:13 PDT"]
[Termination "Woodpusher500 won by checkmate"]

1. d4 {[%clk 0:04:57.3]} 1... c5 {[%clk 0:04:57.2]} 2. dxc5 {[%clk 0:04:55.4]}
2... Nf6 {[%clk 0:04:51.8]} 3. e3 {[%clk 0:04:51.3]} 3... e6 {[%clk 0:04:42.7]}
4. b4 {[%clk 0:04:48.8]} 4... a5 {[%clk 0:04:33.2]} 5. c3 {[%clk 0:04:46.3]}
5... Nd5 {[%clk 0:04:14.8]} 6. Nf3 {[%clk 0:04:40]} 6... axb4 {[%clk 0:04:10.4]}
7. c4 {[%clk 0:04:37.7]} 7... Nb6 {[%clk 0:03:56.9]} 8. Bd3 {[%clk 0:04:35.4]}
8... Na4 {[%clk 0:03:49.1]} 9. O-O {[%clk 0:04:29.4]} 9... Qf6 {[%clk
0:03:46.4]} 10. Nd4 {[%clk 0:04:17.1]} 10... e5 {[%clk 0:03:40.7]} 11. Nb5
{[%clk 0:04:11.9]} 11... Nxc5 {[%clk 0:03:18.4]} 12. Nc7+ {[%clk 0:04:08.1]}
12... Kd8 {[%clk 0:03:15.5]} 13. Nxa8 {[%clk 0:03:56.6]} 13... e4 {[%clk
0:03:13.2]} 14. Be2 {[%clk 0:03:35.1]} 14... Qxa1 {[%clk 0:03:10.1]} 15. Nb6
{[%clk 0:03:29.6]} 15... Qxb1 {[%clk 0:02:52.7]} 16. a3 {[%clk 0:03:16.5]} 16...
Qa2 {[%clk 0:02:24.3]} 17. axb4 {[%clk 0:03:11]} 17... Nd3 {[%clk 0:02:13.9]}
18. Bxd3 {[%clk 0:02:59.8]} 18... exd3 {[%clk 0:02:08.1]} 19. Qxd3 {[%clk
0:02:57.7]} 19... Bxb4 {[%clk 0:02:01.9]} 20. Qf5 {[%clk 0:02:38.6]} 20... f6
{[%clk 0:01:50]} 21. Nd5 {[%clk 0:02:28.2]} 21... Qxc4 {[%clk 0:01:23.6]} 22.
Nxb4 {[%clk 0:02:24.6]} 22... d6 {[%clk 0:01:16.1]} 23. Qa5+ {[%clk 0:02:10.6]}
23... Ke8 {[%clk 0:01:00.6]} 24. Bd2 {[%clk 0:02:06.1]} 24... Nc6 {[%clk
0:00:51.4]} 25. Nxc6 {[%clk 0:01:59.3]} 25... bxc6 {[%clk 0:00:46.6]} 26. Rc1
{[%clk 0:01:52.8]} 26... Qe4 {[%clk 0:00:39.3]} 27. Rxc6 {[%clk 0:01:43.2]}
27... Qxc6 {[%clk 0:00:35.9]} 28. h3 {[%clk 0:01:33.1]} 28... Qc2 {[%clk
0:00:25.8]} 29. Kh2 {[%clk 0:01:24]} 29... Kf7 {[%clk 0:00:19.8]} 30. Qc7+
{[%clk 0:01:19.4]} 30... Qxc7 {[%clk 0:00:15.9]} 31. Bc3 {[%clk 0:01:15.3]}
31... Re8 {[%clk 0:00:13.2]} 32. Bd4 {[%clk 0:01:13.7]} 32... d5+ {[%clk
0:00:11.4]} 33. g3 {[%clk 0:01:12.7]} 33... Bf5 {[%clk 0:00:09.7]} 34. h4 {[%clk
0:01:11.1]} 34... Ra8 {[%clk 0:00:07.6]} 35. f3 {[%clk 0:01:07.7]} 35... Ra2+
{[%clk 0:00:05.8]} 36. Kg1 {[%clk 0:00:59]} 36... Qc1# {[%clk 0:00:00.9]} 0-1

[Event "Live Chess"]
[Site "Chess.com"]
[Date "2023.05.20"]
[Round "-"]
[White "atunnacl"]
[Black "MarkLim1"]
[Result "1-0"]
[WhiteElo "1923"]
[BlackElo "1667"]
[TimeControl "300"]
[EndTime "12:44:24 PDT"]
[Termination "atunnacl won by resignation"]

1. e4 {[%clk 0:04:57.6]} 1... e6 {[%clk 0:04:58.8]} 2. e5 {[%clk 0:04:54.5]}
2... d5 {[%clk 0:04:57.9]} 3. exd6 {[%clk 0:04:52.3]} 3... Bxd6 {[%clk
0:04:56.8]} 4. d4 {[%clk 0:04:47.2]} 4... Nf6 {[%clk 0:04:56]} 5. Nf3 {[%clk
0:04:40.4]} 5... O-O {[%clk 0:04:55.4]} 6. c4 {[%clk 0:04:35]} 6... c5 {[%clk
0:04:54.9]} 7. dxc5 {[%clk 0:04:20.7]} 7... Bxc5 {[%clk 0:04:53.4]} 8. Qxd8
{[%clk 0:04:18.8]} 8... Rxd8 {[%clk 0:04:52.4]} 9. Bg5 {[%clk 0:04:16.1]} 9...
h6 {[%clk 0:04:45.9]} 10. Bxf6 {[%clk 0:04:10.5]} 10... gxf6 {[%clk 0:04:44.9]}
11. Nbd2 {[%clk 0:04:02.6]} 11... Nc6 {[%clk 0:04:43.2]} 12. a3 {[%clk
0:03:57.7]} 12... a5 {[%clk 0:04:42]} 13. Be2 {[%clk 0:03:55.2]} 13... e5 {[%clk
0:04:39.5]} 14. O-O {[%clk 0:03:51.5]} 14... Bf5 {[%clk 0:04:38.1]} 15. Rac1
{[%clk 0:03:31.3]} 15... Nd4 {[%clk 0:04:35.1]} 16. Nxd4 {[%clk 0:03:28.2]}
16... Bxd4 {[%clk 0:04:30.3]} 17. b4 {[%clk 0:02:54.5]} 17... Bb2 {[%clk
0:04:02.2]} 18. Rcd1 {[%clk 0:02:52.3]} 18... Bxa3 {[%clk 0:03:57.2]} 19. Nf3
{[%clk 0:02:46.5]} 19... Bxb4 {[%clk 0:03:51.2]} 20. Rxd8+ {[%clk 0:02:42.3]}
20... Rxd8 {[%clk 0:03:49.5]} 21. Nh4 {[%clk 0:02:38.1]} 21... Be6 {[%clk
0:03:43.5]} 22. Rd1 {[%clk 0:02:20.4]} 22... Rxd1+ {[%clk 0:03:35.3]} 23. Bxd1
{[%clk 0:02:19.2]} 23... Bxc4 {[%clk 0:03:33.8]} 24. Bf3 {[%clk 0:02:18]} 24...
b6 {[%clk 0:03:28.4]} 25. Nf5 {[%clk 0:02:16]} 25... Kh7 {[%clk 0:03:24.2]} 26.
Bc6 {[%clk 0:02:09.9]} 26... Bd3 {[%clk 0:03:13.9]} 27. Ne3 {[%clk 0:01:55.6]}
27... f5 {[%clk 0:02:57.7]} 28. Nd5 {[%clk 0:01:44.3]} 28... Bc5 {[%clk
0:02:51.4]} 29. Nf6+ {[%clk 0:01:25.7]} 29... Kg6 {[%clk 0:02:48.6]} 30. Nd7
{[%clk 0:01:24.6]} 30... f4 {[%clk 0:02:41.4]} 31. Nxe5+ {[%clk 0:01:22.5]} 1-0

[Event "Live Chess"]
[Site "Chess.com"]
[Date "2023.05.20"]
[Round "-"]
[White "Ferrarifan27"]
[Black "GMHarry-youtube"]
[Result "0-1"]
[WhiteElo "2061"]
[BlackElo "2112"]
[TimeControl "300"]
[EndTime "12:44:28 PDT"]
[Termination "GMHarry-youtube won by checkmate"]

1. e4 {[%clk 0:04:58.3]} 1... c5 {[%clk 0:04:59.1]} 2. Nf3 {[%clk 0:04:55.7]}
2... d6 {[%clk 0:04:58.5]} 3. d4 {[%clk 0:04:54.5]} 3... cxd4 {[%clk 0:04:58.4]}
4. Nxd4 {[%clk 0:04:53.5]} 4... Nf6 {[%clk 0:04:56.2]} 5. Nc3 {[%clk 0:04:52.1]}
5... g6 {[%clk 0:04:55.8]} 6. Nd5 {[%clk 0:04:49.9]} 6... Nxe4 {[%clk
0:04:52.5]} 7. Nb5 {[%clk 0:04:47.6]} 7... Na6 {[%clk 0:04:47.7]} 8. Qe2 {[%clk
0:04:44.2]} 8... f5 {[%clk 0:04:20.5]} 9. f3 {[%clk 0:04:37.6]} 9... Nec5 {[%clk
0:04:17.5]} 10. Nf6+ {[%clk 0:04:09.9]} 10... Kf7 {[%clk 0:04:15.5]} 11. Nd5
{[%clk 0:04:05.8]} 11... e6 {[%clk 0:04:05.5]} 12. Nf4 {[%clk 0:04:02.3]} 12...
e5 {[%clk 0:04:03.7]} 13. Qc4+ {[%clk 0:03:57.5]} 13... Kg7 {[%clk 0:04:00.5]}
14. Nd5 {[%clk 0:03:53.6]} 14... Be6 {[%clk 0:03:58.9]} 15. h4 {[%clk
0:03:34.2]} 15... h5 {[%clk 0:03:43.6]} 16. Bg5 {[%clk 0:03:32]} 16... Qd7
{[%clk 0:03:34]} 17. Bf6+ {[%clk 0:03:28.8]} 17... Kf7 {[%clk 0:03:30.5]} 18.
Bxh8 {[%clk 0:03:24.8]} 18... Be7 {[%clk 0:03:16.8]} 19. b4 {[%clk 0:03:08.1]}
19... Na4 {[%clk 0:02:51.1]} 20. Qb3 {[%clk 0:03:02.1]} 20... Nb6 {[%clk
0:02:45.2]} 21. Nxb6 {[%clk 0:03:00.5]} 21... axb6 {[%clk 0:02:36.3]} 22. Bc4
{[%clk 0:02:58.8]} 22... Rxh8 {[%clk 0:02:30.1]} 23. Nc3 {[%clk 0:02:43.4]}
23... Rc8 {[%clk 0:02:21.7]} 24. Bxe6+ {[%clk 0:02:36.7]} 24... Qxe6 {[%clk
0:02:21.6]} 25. Nd5 {[%clk 0:02:35.6]} 25... Nxb4 {[%clk 0:01:49]} 26. Nxb4
{[%clk 0:02:29.5]} 26... d5 {[%clk 0:01:39.2]} 27. Qxd5 {[%clk 0:02:25.1]} 27...
Bxb4+ {[%clk 0:01:34.8]} 28. Qd2 {[%clk 0:02:16.3]} 28... Bxd2+ {[%clk
0:01:32.6]} 29. Kxd2 {[%clk 0:02:16.2]} 29... Qd5+ {[%clk 0:01:31]} 30. Ke2
{[%clk 0:02:14.9]} 30... Rxc2+ {[%clk 0:01:29.1]} 31. Kf1 {[%clk 0:02:13.4]}
31... Qd2 {[%clk 0:01:26.7]} 32. Rh2 {[%clk 0:02:10.9]} 32... Qf2# {[%clk
0:01:25.3]} 0-1

[Event "Live Chess"]
[Site "Chess.com"]
[Date "2023.05.20"]
[Round "-"]
[White "OceanFloater"]
[Black "1600x"]
[Result "0-1"]
[WhiteElo "981"]
[BlackElo "1750"]
[TimeControl "300"]
[EndTime "12:44:28 PDT"]
[Termination "1600x won by resignation"]

1. e4 {[%clk 0:04:56.7]} 1... e5 {[%clk 0:04:59.9]} 2. Nf3 {[%clk 0:04:56]} 2...
Nf6 {[%clk 0:04:57.5]} 3. Nc3 {[%clk 0:04:54]} 3... d6 {[%clk 0:04:53.2]} 4. d4
{[%clk 0:04:53.1]} 4... exd4 {[%clk 0:04:51.7]} 5. Nxd4 {[%clk 0:04:52.5]} 5...
Be7 {[%clk 0:04:50.2]} 6. Bg5 {[%clk 0:04:49.9]} 6... O-O {[%clk 0:04:48.7]} 7.
Bc4 {[%clk 0:04:43.8]} 7... Nxe4 {[%clk 0:04:47.3]} 8. Nxe4 {[%clk 0:04:42.6]}
8... Bxg5 {[%clk 0:04:44.6]} 9. Nxg5 {[%clk 0:04:40.3]} 9... Qxg5 {[%clk
0:04:43]} 10. Nf3 {[%clk 0:04:37.4]} 10... Qxg2 {[%clk 0:04:40.7]} 11. Ke2
{[%clk 0:04:26.7]} 11... Bg4 {[%clk 0:04:38]} 12. Qd3 {[%clk 0:04:19.6]} 12...
Bxf3+ {[%clk 0:04:33.1]} 13. Qxf3 {[%clk 0:04:18.1]} 13... Re8+ {[%clk
0:04:30.1]} 14. Kd3 {[%clk 0:04:12.4]} 14... Qxf3+ {[%clk 0:04:28.2]} 15. Kd2
{[%clk 0:04:11.3]} 15... Qxf2+ {[%clk 0:04:25.9]} 16. Kc3 {[%clk 0:04:09.8]}
16... Nc6 {[%clk 0:04:23.8]} 17. Bxf7+ {[%clk 0:04:07.6]} 17... Kxf7 {[%clk
0:04:18.6]} 18. Rhf1 {[%clk 0:04:05.7]} 18... Re2 {[%clk 0:04:16.1]} 19. Rxf2+
{[%clk 0:04:04]} 19... Rxf2 {[%clk 0:04:15.1]} 20. Re1 {[%clk 0:04:02.9]} 20...
Rxh2 {[%clk 0:04:13.6]} 21. Rf1+ {[%clk 0:04:00.4]} 21... Kg8 {[%clk 0:04:12.1]}
22. b4 {[%clk 0:03:56.1]} 22... Ne5 {[%clk 0:04:10.1]} 23. Kd4 {[%clk 0:03:55]}
23... Rxc2 {[%clk 0:04:07.1]} 24. Kd5 {[%clk 0:03:51.9]} 24... Rd2+ {[%clk
0:04:04.9]} 25. Ke6 {[%clk 0:03:50.7]} 25... Re8+ {[%clk 0:04:02.3]} 26. Kf5
{[%clk 0:03:49.1]} 26... Rf8+ {[%clk 0:03:57.4]} 0-1

[Event "Live Chess"]
[Site "Chess.com"]
[Date "2023.05.20"]
[Round "-"]
[White "JanMur7"]
[Black "Tushinskiy"]
[Result "0-1"]
[WhiteElo "1956"]
[BlackElo "2098"]
[TimeControl "300"]
[EndTime "12:44:31 PDT"]
[Termination "Tushinskiy won by resignation"]

1. e4 {[%clk 0:04:58.2]} 1... e5 {[%clk 0:04:58.8]} 2. Nf3 {[%clk 0:04:57.3]}
2... d6 {[%clk 0:04:58.7]} 3. Nc3 {[%clk 0:04:55.9]} 3... Bg4 {[%clk 0:04:58.1]}
4. Bc4 {[%clk 0:04:54.6]} 4... Nf6 {[%clk 0:04:56.7]} 5. h3 {[%clk 0:04:52.1]}
5... Bh5 {[%clk 0:04:55.5]} 6. d3 {[%clk 0:04:47.8]} 6... Nbd7 {[%clk
0:04:54.8]} 7. Bg5 {[%clk 0:04:46.1]} 7... c6 {[%clk 0:04:54.2]} 8. g4 {[%clk
0:04:35]} 8... Bg6 {[%clk 0:04:52.8]} 9. Nh4 {[%clk 0:04:33.8]} 9... Qc7 {[%clk
0:04:50]} 10. f4 {[%clk 0:04:20]} 10... exf4 {[%clk 0:04:48.2]} 11. Bxf4 {[%clk
0:04:18.3]} 11... Be7 {[%clk 0:04:41.2]} 12. Nf5 {[%clk 0:04:15.7]} 12... Bxf5
{[%clk 0:04:39.5]} 13. gxf5 {[%clk 0:04:14.5]} 13... Qb6 {[%clk 0:04:34]} 14.
Na4 {[%clk 0:04:01.6]} 14... Qa5+ {[%clk 0:04:32.1]} 15. c3 {[%clk 0:03:56.5]}
15... b5 {[%clk 0:04:29.1]} 0-1

[Event "Live Chess"]
[Site "Chess.com"]
[Date "2023.05.20"]
[Round "-"]
[White "ramses-IIG"]
[Black "diana21strabt"]
[Result "0-1"]
[WhiteElo "825"]
[BlackElo "1661"]
[TimeControl "300"]
[EndTime "12:44:35 PDT"]
[Termination "diana21strabt won by resignation"]

1. e4 {[%clk 0:04:58.2]} 1... d5 {[%clk 0:04:58.1]} 2. Nf3 {[%clk 0:04:58.1]}
2... dxe4 {[%clk 0:04:56.9]} 3. Ng5 {[%clk 0:04:54.9]} 3... Nf6 {[%clk
0:04:55.4]} 4. d3 {[%clk 0:04:54.1]} 4... exd3 {[%clk 0:04:54.2]} 5. Bxd3 {[%clk
0:04:53]} 5... h6 {[%clk 0:04:52]} 6. Nxf7 {[%clk 0:04:39.8]} 6... Kxf7 {[%clk
0:04:48.1]} 7. Bg6+ {[%clk 0:04:38.1]} 7... Kxg6 {[%clk 0:04:44.2]} 8. Qxd8
{[%clk 0:04:38]} 8... Na6 {[%clk 0:04:26.9]} 9. Qd3+ {[%clk 0:04:03.7]} 9... Bf5
{[%clk 0:04:23.9]} 10. Qb3 {[%clk 0:03:56.4]} 10... Nc5 {[%clk 0:04:19.2]} 11.
Qc3 {[%clk 0:03:43]} 11... e6 {[%clk 0:04:11.5]} 12. O-O {[%clk 0:03:38.5]}
12... Bd6 {[%clk 0:04:10.2]} 13. Be3 {[%clk 0:03:22.9]} 13... Nce4 {[%clk
0:04:08.2]} 14. Qb3 {[%clk 0:03:10.9]} 14... b6 {[%clk 0:03:50.7]} 15. c3 {[%clk
0:03:07]} 15... c5 {[%clk 0:03:48.4]} 16. Nd2 {[%clk 0:02:59.8]} 16... Rad8
{[%clk 0:03:43.4]} 17. Nxe4 {[%clk 0:02:55.6]} 17... Bxe4 {[%clk 0:03:42.3]} 18.
Qxe6 {[%clk 0:02:44.7]} 18... Rhe8 {[%clk 0:03:39]} 19. Qb3 {[%clk 0:02:38.4]}
19... Re5 {[%clk 0:03:32]} 20. Bf4 {[%clk 0:02:23.7]} 20... Rh5 {[%clk
0:03:30.4]} 21. Bxd6 {[%clk 0:02:16.7]} 21... Rxd6 {[%clk 0:03:29.7]} 22. Rad1
{[%clk 0:02:08.8]} 22... Bd5 {[%clk 0:03:26]} 23. Qa4 {[%clk 0:01:50.1]} 23...
a5 {[%clk 0:03:14]} 24. b3 {[%clk 0:01:42.5]} 24... Bc6 {[%clk 0:03:12.3]} 25.
Qa3 {[%clk 0:01:37.1]} 25... Re6 {[%clk 0:03:10.7]} 26. b4 {[%clk 0:01:28.1]}
26... Rg5 {[%clk 0:03:08.3]} 27. f3 {[%clk 0:01:24.1]} 27... Re2 {[%clk
0:03:04.8]} 28. Rf2 {[%clk 0:01:05.5]} 28... Bxf3 {[%clk 0:03:00.8]} 29. Rxe2
{[%clk 0:00:51.6]} 29... Bxe2 {[%clk 0:02:59.7]} 30. Rd2 {[%clk 0:00:39.1]}
30... axb4 {[%clk 0:02:48]} 31. cxb4 {[%clk 0:00:36]} 31... Bc4 {[%clk
0:02:34.3]} 32. bxc5 {[%clk 0:00:31.6]} 32... bxc5 {[%clk 0:02:33]} 33. Rc2
{[%clk 0:00:20.7]} 33... Bd5 {[%clk 0:02:27.1]} 34. Qxc5 {[%clk 0:00:16.5]}
34... Be4 {[%clk 0:02:23.1]} 35. Qxg5+ {[%clk 0:00:15.4]} 35... hxg5 {[%clk
0:02:19.5]} 36. a4 {[%clk 0:00:13.8]} 36... Bxc2 {[%clk 0:02:18.2]} 37. a5
{[%clk 0:00:12.9]} 37... Bd3 {[%clk 0:02:17.5]} 38. a6 {[%clk 0:00:12.1]} 38...
Bxa6 {[%clk 0:02:16.7]} 0-1

[Event "Live Chess"]
[Site "Chess.com"]
[Date "2023.05.20"]
[Round "-"]
[White "thrithik"]
[Black "Wild_Tiger"]
[Result "0-1"]
[WhiteElo "378"]
[BlackElo "1056"]
[TimeControl "300"]
[EndTime "12:44:35 PDT"]
[Termination "Wild_Tiger won by checkmate"]

1. b3 {[%clk 0:04:55.3]} 1... e5 {[%clk 0:04:59.9]} 2. e3 {[%clk 0:04:52.8]}
2... d5 {[%clk 0:04:57.2]} 3. f3 {[%clk 0:04:52.5]} 3... Nf6 {[%clk 0:04:51.7]}
4. Qe2 {[%clk 0:04:52.1]} 4... Bb4 {[%clk 0:04:49.6]} 5. Qb5+ {[%clk 0:04:50.1]}
5... Nc6 {[%clk 0:04:45.3]} 6. Qa4 {[%clk 0:04:42.7]} 6... Bd7 {[%clk
0:04:29.7]} 7. c3 {[%clk 0:04:41.2]} 7... Bd6 {[%clk 0:04:21.5]} 8. c4 {[%clk
0:04:38]} 8... Nd4 {[%clk 0:03:54]} 9. cxd5 {[%clk 0:04:35.6]} 9... Bxa4 {[%clk
0:03:51.6]} 10. Bb2 {[%clk 0:04:34.3]} 10... Nc2+ {[%clk 0:03:49.2]} 11. Kd1
{[%clk 0:04:30.1]} 11... Nxa1 {[%clk 0:03:49.1]} 12. bxa4 {[%clk 0:04:26.5]}
12... Bb4 {[%clk 0:03:32.5]} 13. Bxa1 {[%clk 0:04:24.5]} 13... Qxd5 {[%clk
0:03:30.1]} 14. Bb5+ {[%clk 0:04:14.6]} 14... c6 {[%clk 0:03:24.8]} 15. Bxc6+
{[%clk 0:04:08.7]} 15... bxc6 {[%clk 0:03:20.2]} 16. Nh3 {[%clk 0:04:01.6]}
16... Qd3 {[%clk 0:03:13.9]} 17. Ng5 {[%clk 0:03:57.8]} 17... Qxb1+ {[%clk
0:03:10.9]} 18. Ke2 {[%clk 0:03:53.3]} 18... Qxh1 {[%clk 0:03:06.9]} 19. Bxe5
{[%clk 0:03:51]} 19... Qc1 {[%clk 0:02:56]} 20. a3 {[%clk 0:03:45.2]} 20...
Qxd2+ {[%clk 0:02:54.2]} 21. Kf1 {[%clk 0:03:38.7]} 21... Qxe3 {[%clk
0:02:51.6]} 22. axb4 {[%clk 0:03:33.6]} 22... Qxe5 {[%clk 0:02:40.9]} 23. Nh3
{[%clk 0:03:29.6]} 23... Qxh2 {[%clk 0:02:37.2]} 24. Nf2 {[%clk 0:03:23.9]}
24... O-O-O {[%clk 0:02:34.8]} 25. Ne4 {[%clk 0:03:19.2]} 25... Rd1+ {[%clk
0:02:32.3]} 26. Ke2 {[%clk 0:03:15.2]} 26... Rhd8 {[%clk 0:02:29]} 27. Nf2
{[%clk 0:03:13]} 27... Qxg2 {[%clk 0:02:26]} 28. Ke3 {[%clk 0:03:09.4]} 28...
Re1+ {[%clk 0:02:19.9]} 29. Kf4 {[%clk 0:03:01.8]} 29... g5+ {[%clk 0:02:05.1]}
30. Kf5 {[%clk 0:03:01.3]} 30... Qxf3+ {[%clk 0:01:45]} 31. Kxg5 {[%clk
0:02:59]} 31... Rg1+ {[%clk 0:01:34.8]} 32. Kh6 {[%clk 0:02:50.4]} 32... Qh5#
{[%clk 0:01:33.4]} 0-1

[Event "Live Chess"]
[Site "Chess.com"]
[Date "2023.05.20"]
[Round "-"]
[White "Conradical12"]
[Black "raminguy"]
[Result "0-1"]
[WhiteElo "1573"]
[BlackElo "1977"]
[TimeControl "300"]
[EndTime "12:44:40 PDT"]
[Termination "raminguy won by resignation"]

1. e4 {[%clk 0:04:59.1]} 1... e5 {[%clk 0:04:58.9]} 2. Nf3 {[%clk 0:04:57.7]}
2... Nc6 {[%clk 0:04:58.5]} 3. Bb5 {[%clk 0:04:56.9]} 3... Nf6 {[%clk
0:04:57.4]} 4. O-O {[%clk 0:04:56.3]} 4... Nxe4 {[%clk 0:04:56.7]} 5. Re1 {[%clk
0:04:55.5]} 5... Nd6 {[%clk 0:04:56.1]} 6. Nxe5 {[%clk 0:04:54.6]} 6... Be7
{[%clk 0:04:55.5]} 7. Nxc6 {[%clk 0:04:52.1]} 7... dxc6 {[%clk 0:04:55.4]} 8.
Bd3 {[%clk 0:04:50.9]} 8... O-O {[%clk 0:04:54.7]} 9. Nc3 {[%clk 0:04:50.4]}
9... Bf6 {[%clk 0:04:52.8]} 10. Ne4 {[%clk 0:04:48.2]} 10... Nxe4 {[%clk
0:04:48.3]} 11. Bxe4 {[%clk 0:04:48.1]} 11... Re8 {[%clk 0:04:47]} 12. Qe2
{[%clk 0:04:45.3]} 12... Be6 {[%clk 0:04:44.3]} 13. Rb1 {[%clk 0:04:40.9]} 13...
Bxa2 {[%clk 0:04:39.5]} 14. Ra1 {[%clk 0:04:38.3]} 14... Be6 {[%clk 0:04:36.8]}
15. Ra3 {[%clk 0:04:35.3]} 15... a6 {[%clk 0:04:27.2]} 16. Re3 {[%clk
0:04:33.6]} 16... Rf8 {[%clk 0:04:10.7]} 17. b3 {[%clk 0:04:13]} 17... Bg5
{[%clk 0:04:04.9]} 18. Rg3 {[%clk 0:04:09.3]} 18... Bf4 {[%clk 0:03:54.6]} 19.
Rf3 {[%clk 0:04:04.8]} 19... Bg4 {[%clk 0:03:53]} 20. Bb2 {[%clk 0:03:53.6]}
20... Bxf3 {[%clk 0:03:49.4]} 21. Qxf3 {[%clk 0:03:53.5]} 21... Bd6 {[%clk
0:03:32.7]} 22. Re3 {[%clk 0:03:40.1]} 22... Qh4 {[%clk 0:03:26.2]} 23. h3
{[%clk 0:03:12.7]} 23... Qf4 {[%clk 0:03:21]} 24. Qh5 {[%clk 0:03:06.2]} 24...
g6 {[%clk 0:03:07.4]} 25. Qe2 {[%clk 0:02:37.2]} 25... Qh2+ {[%clk 0:03:01.2]}
0-1

[Event "Live Chess"]
[Site "Chess.com"]
[Date "2023.05.20"]
[Round "-"]
[White "McSlash1"]
[Black "Stanbad1"]
[Result "0-1"]
[WhiteElo "2054"]
[BlackElo "2419"]
[TimeControl "300"]
[EndTime "12:44:49 PDT"]
[Termination "Stanbad1 won by resignation"]

1. f4 {[%clk 0:04:58.1]} 1... e6 {[%clk 0:04:55.9]} 2. e4 {[%clk 0:04:57.5]}
2... b6 {[%clk 0:04:55.2]} 3. Nf3 {[%clk 0:04:56.3]} 3... Bb7 {[%clk 0:04:54.6]}
4. Nc3 {[%clk 0:04:55]} 4... c5 {[%clk 0:04:53.5]} 5. d3 {[%clk 0:04:53.5]} 5...
d5 {[%clk 0:04:51.7]} 6. e5 {[%clk 0:04:52.1]} 6... Nc6 {[%clk 0:04:48.4]} 7.
Be2 {[%clk 0:04:50.8]} 7... f6 {[%clk 0:04:45.9]} 8. exf6 {[%clk 0:04:49.1]}
8... Nxf6 {[%clk 0:04:44.6]} 9. O-O {[%clk 0:04:49]} 9... Bd6 {[%clk 0:04:43.7]}
10. Qe1 {[%clk 0:04:46.6]} 10... O-O {[%clk 0:04:42.3]} 11. Ng5 {[%clk
0:04:44.2]} 11... Qd7 {[%clk 0:04:39]} 12. Qh4 {[%clk 0:04:42.5]} 12... h6
{[%clk 0:04:35.5]} 13. Nf3 {[%clk 0:04:28.3]} 13... Rae8 {[%clk 0:04:31.9]} 14.
Nb5 {[%clk 0:04:24.2]} 14... Bb8 {[%clk 0:04:29.6]} 15. Bd2 {[%clk 0:04:18.9]}
15... a6 {[%clk 0:04:22]} 16. Nc3 {[%clk 0:04:17.6]} 16... e5 {[%clk 0:04:21.3]}
17. fxe5 {[%clk 0:04:16.4]} 17... Nxe5 {[%clk 0:04:21.2]} 18. Nxe5 {[%clk
0:04:15.4]} 18... Bxe5 {[%clk 0:04:21.1]} 19. Rae1 {[%clk 0:04:01.2]} 19... Qc7
{[%clk 0:04:11.5]} 20. h3 {[%clk 0:03:47.8]} 20... Bg3 {[%clk 0:04:08.7]} 21.
Bf4 {[%clk 0:03:30.1]} 21... Bxh4 {[%clk 0:04:02.4]} 22. Bxc7 {[%clk 0:03:29.4]}
22... Bxe1 {[%clk 0:04:02.3]} 23. Rxe1 {[%clk 0:03:28.3]} 23... d4 {[%clk
0:04:00.8]} 24. Nd1 {[%clk 0:03:23.8]} 24... Nd5 {[%clk 0:03:59.8]} 25. Bg3
{[%clk 0:03:15.1]} 25... Ne3 {[%clk 0:03:49.8]} 26. Nxe3 {[%clk 0:03:09.9]}
26... Rxe3 {[%clk 0:03:49.7]} 27. Bf2 {[%clk 0:03:05.5]} 27... Re7 {[%clk
0:03:47.9]} 28. Bf3 {[%clk 0:03:01.2]} 28... Rxe1+ {[%clk 0:03:45.8]} 29. Bxe1
{[%clk 0:02:59.6]} 29... Bxf3 {[%clk 0:03:45.7]} 0-1